bitfinex-derivatives/quotes_ETHF0:USTF0_20251211
["timestamp","ask_amount","ask_price","bid_price","bid_amount"]
[1765432658575,0.6845,3213.1,3213.0,5.02047143]
[1765432658782,1.8496,3213.5,3213.4,0.6954]
[1765432658980,1.8496,3213.5,3213.0,3.63167143]
[1765432659281,1.4154,3213.1,3213.0,1.39347143]
[1765432659474,2.95770769,3213.5,3213.4,0.6954]
[1765432660074,2.95770769,3213.5,3213.0,0.42207143]
[1765432660275,1.54230769,3213.5,3213.0,1.81087143]
[1765432660480,2.95770769,3213.5,3213.4,0.6954]
[1765432660680,2.52350769,3213.5,3213.4,1.3888]
[1765432660979,0.6845,3213.5,3213.4,1.3888]
[1765432661170,7.0608,3213.6,3213.4,1.3888]
[1765432661374,1.4154,3213.6,3213.5,1.8062]
[1765432661574,1.4154,3213.6,3213.5,0.6954]
[1765432661775,1.4154,3213.6,3213.5,1.3888]
[1765432663675,1.4154,3213.3,3213.2,1.54439]
[1765432663876,2.52350769,3213.3,3213.2,0.15559]
[1765432664975,1.4154,3213.1,3213.0,0.00467143]
[1765432665576,1.4154,3213.1,3213.0,1.39347143]
[1765432666281,1.4154,3213.1,3213.0,0.70007143]
[1765432666582,1.4154,3213.1,3213.0,0.00467143]
[1765432668679,1.4154,3213.1,3213.0,0.70007143]
[1765432669184,1.4154,3213.1,3213.0,0.00467143]
[1765432672392,1.4154,3213.1,3213.0,0.70007143]
[1765432673095,1.4154,3213.1,3213.0,0.00467143]
[1765432673294,2.52350769,3213.1,3213.0,0.00467143]
[1765432673495,2.52350769,3213.1,3213.0,0.70007143]
[1765432673694,1.4154,3213.1,3213.0,1.39347143]
[1765432674195,1.4154,3213.1,3213.0,0.70007143]
[1765432674497,1.4154,3213.1,3213.0,1.39347143]
[1765432674897,1.4154,3213.1,3213.0,0.70007143]
[1765432676496,1.4154,3213.1,3213.0,1.39347143]
[1765432676697,3.8923,3213.2,3213.1,1.3888]
[1765432676897,3.2078,3213.2,3213.1,1.3888]
[1765432677098,3.8923,3213.2,3213.1,1.3888]
[1765432678094,3.2078,3213.2,3213.1,1.3888]
[1765432678491,3.8923,3213.2,3213.1,1.3888]
[1765432679696,4.6194,3213.2,3213.1,1.3888]
[1765432682195,3.8923,3213.2,3213.1,1.3888]
[1765432682896,3.2078,3213.2,3213.1,1.3888]
[1765432683500,2.57607135,3213.4,3213.3,1.4153]
[1765432684390,2.57607135,3213.4,3213.0,0.57767143]
[1765432684704,2.57607135,3213.1,3213.0,0.00467143]
[1765432685000,1.4398,3213.3,3213.2,1.4153]
[1765432686898,0.7127,3213.3,3213.2,1.4153]
[1765432687503,1.4398,3213.3,3213.2,1.4153]
[1765432691003,2.54987135,3213.6,3213.5,0.6889]
[1765432691199,0.7399,3213.1,3213.0,1.90537143]
[1765432691404,1.4408,3213.1,3213.0,1.90537143]
[1765432691806,0.7399,3213.1,3213.0,1.90537143]
[1765432692702,1.4408,3213.1,3213.0,1.90537143]
[1765432693297,1.4408,3213.1,3213.0,0.00467143]
[1765432693705,1.4408,3213.1,3213.0,0.73637143]
[1765432693908,1.4408,3213.1,3213.0,1.48567143]
[1765432695812,1.4408,3213.1,3213.0,0.00467143]
[1765432696314,0.7399,3213.1,3213.0,1.92717143]
[1765432697013,1.4408,3213.1,3213.0,1.92717143]
[1765432698413,1.4408,3213.1,3213.0,0.00467143]
[1765432698710,1.4408,3213.1,3213.0,0.73637143]
[1765432699112,1.4408,3213.1,3213.0,1.48567143]
[1765432700312,4.6486,3213.3,3213.2,1.481]
[1765432702604,4.6486,3213.3,3213.2,0.7317]
[1765432704411,4.6486,3213.3,3213.2,1.481]
[1765432704714,1.4408,3213.1,3213.0,1.92717143]
[1765432705010,2.57707135,3213.1,3213.0,1.92717143]
[1765432705311,2.57707135,3213.1,3213.0,0.00467143]
[1765432705511,3.7133427,3213.1,3213.0,0.00467143]
[1765432705712,2.57707135,3213.1,3213.0,0.00467143]
[1765432705905,3.69728158,3213.1,3213.0,0.00467143]
[1765432706310,2.57707135,3213.1,3213.0,0.00467143]
[1765432706813,6.43007135,3213.1,3213.0,0.00467143]
[1765432708023,5.2938,3213.1,3213.0,1.92717143]
[1765432708209,4.5929,3213.1,3213.0,1.92717143]
[1765432709307,4.5967,3213.1,3213.0,1.92717143]
[1765432712620,0.7437,3213.1,3213.0,1.92717143]
[1765432713020,1.4794,3213.1,3213.0,1.92717143]
[1765432713917,0.7437,3213.1,3213.0,1.92717143]
[1765432714723,1.4794,3213.1,3213.0,1.92717143]
[1765432716722,1.4794,3213.1,3213.0,2.08277143]
[1765432718025,1.4794,3213.1,3213.0,0.89197143]
[1765432721126,1.4794,3213.1,3213.0,2.00307143]
[1765432724734,0.4311,3213.5,3213.4,1.3856]
[1765432724933,1.9105,3213.5,3213.4,1.3856]
[1765432725129,1.9105,3213.5,3213.4,0.6958]
[1765432726033,3.04677135,3213.5,3213.4,0.6958]
[1765432727533,1.4794,3213.4,3213.3,0.15559]
[1765432729039,1.4794,3213.4,3213.3,0.85139]
[1765432729337,1.4794,3213.4,3213.3,0.15559]
[1765432729538,1.4794,3213.4,3213.3,0.85139]
[1765432730139,1.4794,3213.4,3213.3,0.15559]
[1765432737041,1.4794,3213.4,3213.3,0.85139]
[1765432740347,1.4794,3213.4,3213.3,0.15559]
[1765432742744,1.4794,3213.4,3213.3,0.84819]
[1765432743048,1.4794,3213.4,3213.3,0.15559]
[1765432743550,1.4794,3213.4,3213.3,0.84819]
[1765432746449,1.4794,3213.4,3213.3,0.15559]
[1765432748354,1.4794,3213.4,3213.3,1.53179]
[1765432754654,1.4794,3213.4,3213.3,0.15559]
[1765432755153,1.413,3213.1,3213.0,0.00467143]
[1765432755353,1.413,3213.1,3213.0,0.69727143]
[1765432755549,1.413,3213.1,3213.0,1.38087143]
[1765432756559,0.6827,3213.1,3213.0,1.80577143]
[1765432756758,1.53443341,3213.5,3213.4,0.6926]
[1765432756759,2.94743341,3213.5,3213.4,0.6926]
[1765432757055,0.6827,3213.1,3213.0,1.80577143]
[1765432757356,3.853,3213.6,3213.0,0.58517143]
[1765432757561,1.8524,3213.5,3213.4,0.7188]
[1765432758061,1.8524,3213.5,3213.0,0.42957143]
[1765432758659,0.7316,3213.2,3213.1,1.58369]
[1765432759562,1.4352,3213.2,3213.1,1.58369]
[1765432760659,1.4352,3213.2,3213.1,0.87439]
[1765432761268,1.4352,3213.2,3213.1,1.58369]
[1765432763264,0.7316,3213.2,3213.1,1.58369]
[1765432763767,1.4352,3213.5,3213.4,1.4281]
[1765432764371,1.4352,3213.5,3213.4,0.7188]
[1765432768969,0.7261,3213.6,3213.5,1.8167]
[1765432769173,1.4747,3213.6,3213.5,5.0245]
[1765432769363,0.7261,3213.6,3213.5,5.0245]
[1765432770673,0.4288,3214.0,3213.5,5.18008]
[1765432770874,1.9035,3214.0,3213.9,0.7054]
[1765432771672,1.4747,3214.0,3213.9,1.4046]
[1765432774577,1.4747,3214.0,3213.9,0.7054]
[1765432775677,1.4747,3214.0,3213.9,1.4046]
[1765432776577,1.4747,3214.0,3213.9,0.7054]
[1765432777275,1.4747,3213.9,3213.8,0.15556]
[1765432779069,1.4747,3213.6,3213.5,3.2078]
[1765432779577,1.4747,3213.6,3213.5,3.9132]
[1765432779977,1.4747,3213.6,3213.5,4.6124]
[1765432780880,0.7261,3213.6,3213.5,5.0245]
[1765432781074,1.4747,3213.6,3213.5,5.0245]
[1765432781882,1.7991,3214.0,3213.9,1.4046]
[1765432782078,1.7991,3214.0,3213.5,2.6199]
[1765432782379,1.7991,3214.0,3213.9,0.7054]
[1765432782581,1.7991,3214.0,3213.9,1.4046]
[1765432783280,1.7991,3214.0,3213.9,0.7054]
[1765432784784,1.7991,3214.0,3213.9,0.2308]
[1765432786986,0.7261,3213.7,3213.6,0.31817]
[1765432787682,1.073,3214.0,3213.9,0.0813]
[1765432787884,1.7991,3214.0,3213.9,0.0813]
[1765432788073,1.4747,3213.8,3213.7,0.31817]
[1765432788484,0.7261,3213.8,3213.7,0.31817]
[1765432788988,1.7991,3214.0,3213.7,0.15557]
[1765432789382,1.7991,3214.0,3213.8,0.15556]
[1765432789891,0.7486,3213.9,3213.8,0.15556]
[1765432790085,1.4747,3213.9,3213.8,0.15556]
[1765432790781,1.4747,3213.9,3213.5,2.2078]
[1765432791488,1.4747,3213.9,3213.8,0.15556]
[1765432791787,1.4747,3213.9,3213.5,2.2078]
[1765432792492,1.4747,3213.9,3213.8,0.15556]
[1765432792988,1.4747,3213.9,3213.5,2.2078]
[1765432793583,1.4747,3213.9,3213.8,0.15556]
[1765432793992,1.4747,3213.9,3213.5,2.2078]
[1765432794588,1.4747,3213.9,3213.8,0.15556]
[1765432794892,1.4747,3213.9,3213.5,2.2078]
[1765432795481,1.4747,3213.9,3213.8,0.15556]
[1765432795882,1.4747,3213.9,3213.5,2.2078]
[1765432796592,1.4747,3213.9,3213.8,0.15556]
[1765432796891,1.4747,3213.9,3213.5,2.2078]
[1765432797492,1.4747,3213.9,3213.8,0.15556]
[1765432797893,1.4747,3213.9,3213.5,2.2078]
[1765432798289,0.7261,3213.9,3213.5,2.2078]
[1765432798488,0.7261,3213.9,3213.8,0.15556]
[1765432798692,1.0744,3214.0,3213.9,0.15556]
[1765432798999,1.7518,3214.0,3213.8,1.13538922]
[1765432799400,1.7518,3214.0,3213.9,0.15556]
[1765432799601,1.0744,3214.0,3213.9,0.15556]
[1765432799801,1.7518,3214.0,3213.9,0.15556]
[1765432800401,1.0744,3214.0,3213.9,0.15556]
[1765432800698,0.3244,3214.0,3213.8,1.13538922]
[1765432801104,1.4274,3213.9,3213.8,0.15556]
[1765432802807,1.4274,3213.8,3213.7,1.29095922]
[1765432803810,1.4274,3213.8,3213.7,0.15557]
[1765432804709,1.4274,3213.6,3213.5,1.51895]
[1765432806811,1.4274,3213.1,3213.0,3.21247143]
[1765432807311,1.4274,3213.1,3213.0,3.36807143]
[1765432807506,1.4274,3213.1,3213.0,2.36807143]
[1765432807908,1.4274,3213.1,3213.0,0.1556]
[1765432808707,1.4274,3212.8,3212.7,0.00467143]
[1765432808912,1.4274,3212.6,3212.5,0.15562]
[1765432811608,1.4274,3212.4,3212.3,0.0022995]
[1765432814812,1.8621,3212.0,3211.9,1.13538922]
[1765432815116,1.8621,3212.0,3211.9,0.15565]
[1765432815316,1.8621,3212.0,3211.8,3.2078]
[1765432815317,1.4314,3211.9,3211.8,3.2078]
[1765432815919,1.43393924,3211.9,3211.8,3.2108929]
[1765432816515,1.43393924,3211.9,3211.8,3.3665529]
[1765432817718,1.43393924,3211.9,3211.8,2.3665529]
[1765432819222,1.43393924,3211.9,3211.8,3.50194212]
[1765432820022,1.43393924,3211.9,3211.8,1.29414212]
[1765432821925,1.43393924,3211.9,3211.8,0.1587529]
[1765432822123,1.4314,3211.8,3211.7,1.13538922]
[1765432822623,0.7174,3211.8,3211.7,1.13538922]
[1765432823227,0.7174,3211.8,3211.7,1.13908343]
[1765432823527,0.7174,3211.8,3211.7,1.29474343]
[1765432825222,1.4314,3211.8,3211.7,1.29474343]
[1765432825423,1.4314,3211.8,3211.7,0.29474343]
[1765432827733,0.7174,3211.8,3211.7,0.29474343]
[1765432828031,0.00253924,3211.9,3211.8,0.15566]
[1765432828228,0.00253924,3211.9,3211.8,3.36346]
[1765432828629,1.46583924,3211.9,3211.8,0.15566]
[1765432829328,0.00253924,3211.9,3211.8,0.15566]
[1765432831033,0.00253924,3211.9,3211.8,3.36346]
[1765432833231,0.00253924,3211.9,3211.8,4.49884922]
[1765432834334,0.73793924,3211.9,3211.8,1.29104922]
[1765432834636,0.00253924,3211.9,3211.8,1.29104922]
[1765432835338,0.00253924,3211.9,3211.8,4.49884922]
[1765432835535,3.6295,3212.5,3212.4,0.15563]
[1765432835739,3.6295,3212.5,3212.4,1.29101922]
[1765432836240,0.00467143,3212.9,3212.8,0.99541]
[1765432836538,0.00724644,3212.9,3212.8,2.13079922]
[1765432837832,0.4217,3213.5,3213.4,0.8398]
[1765432838035,0.4217,3213.5,3213.4,0.15558]
[1765432838342,1.4633,3213.3,3213.2,1.55528922]
[1765432838635,1.4633,3213.3,3213.2,1.97518922]
[1765432838942,1.46598778,3213.3,3213.2,1.97518922]
[1765432839637,1.4633,3213.1,3213.0,1.13538922]
[1765432840038,1.4633,3213.1,3213.0,1.29098922]
[1765432841141,0.00268778,3213.3,3213.2,0.15559]
[1765432841343,0.00268778,3213.3,3213.2,1.29097922]
[1765432842043,1.46598778,3213.3,3213.2,1.29097922]
[1765432842342,0.00268778,3213.3,3213.2,1.29097922]
[1765432842839,0.73808778,3213.3,3213.2,1.29097922]
[1765432843042,1.46598778,3213.3,3213.2,1.29097922]
[1765432844959,0.00268778,3213.3,3213.2,1.29097922]
[1765432846255,0.73808778,3213.3,3213.2,1.29097922]
[1765432846449,0.00268778,3213.3,3213.2,1.29097922]
[1765432848456,0.73808778,3213.3,3213.2,1.29097922]
[1765432848659,1.46598778,3213.3,3213.2,1.29097922]
[1765432849154,0.73808778,3213.3,3213.2,1.29097922]
[1765432850052,0.00268778,3213.3,3213.2,1.29097922]
[1765432850752,0.73808778,3213.3,3213.2,1.29097922]
[1765432850951,1.46598778,3213.3,3213.2,1.29097922]
[1765432852161,1.46598778,3213.3,3213.2,0.29097922]
[1765432852658,1.46598778,3213.3,3213.2,0.44656922]
[1765432853561,1.9114,3213.0,3212.9,0.16028143]
[1765432854660,1.4633,3212.6,3212.5,3.2078]
[1765432854860,1.9114,3213.0,3212.9,0.15561]
[1765432855162,1.4633,3212.8,3212.7,1.13538922]
[1765432856664,1.4633,3212.8,3212.7,1.29099922]
[1765432858365,1.473,3212.6,3212.5,4.34318922]
[1765432858867,0.7354,3212.6,3212.5,3.2078]
[1765432859069,1.473,3212.6,3212.5,3.2078]
[1765432859569,0.7354,3212.6,3212.5,3.36342]
[1765432859763,1.4753,3212.8,3212.7,0.15561]
[1765432860168,1.4753,3212.6,3212.5,3.2078]
[1765432860461,0.4481,3213.0,3212.5,3.2078]
[1765432860669,1.4753,3212.8,3212.7,1.26345758]
[1765432861062,1.4753,3212.8,3212.7,0.15561]
[1765432861267,1.4753,3212.6,3212.5,3.2078]
[1765432861666,1.4753,3212.6,3212.5,0.15562]
[1765432861869,0.7377,3211.8,3211.7,1.40119421]
[1765432862164,1.4753,3211.8,3211.7,1.55685421]
[1765432862569,0.7377,3212.0,3211.7,0.00369421]
[1765432862874,1.4753,3212.0,3211.9,1.3975]
[1765432863171,1.8817,3212.0,3211.9,0.7017]
[1765432863366,1.8817,3212.0,3211.9,1.3975]
[1765432863560,1.8817,3212.0,3211.9,1.55315]
[1765432863774,1.8817,3212.0,3211.9,0.15565]
[1765432863972,1.8817,3212.0,3211.9,0.85735]
[1765432865768,1.8817,3212.0,3211.9,0.15565]
[1765432868277,1.8817,3212.0,3211.9,1.55315]
[1765432868462,1.1441,3212.0,3211.9,1.55315]
[1765432868764,1.8817,3212.0,3211.9,1.55315]
[1765432868965,3.2078,3212.2,3212.1,1.55314]
[1765432869163,4.6831,3212.2,3212.1,1.55314]
[1765432869364,4.6831,3212.2,3212.1,0.85734]
[1765432869965,4.6831,3212.2,3212.0,1.10784758]
[1765432870171,0.4064,3212.0,3211.8,0.15566]
[1765432870374,1.8817,3212.0,3211.9,0.15565]
[1765432870577,1.8817,3212.0,3211.9,0.78325]
[1765432870878,1.8817,3212.0,3211.9,1.40165]
[1765432871379,1.8817,3212.0,3211.9,0.78325]
[1765432871779,1.8817,3212.0,3211.9,1.47905]
[1765432871973,0.4064,3212.0,3211.9,1.47905]
[1765432873377,1.1441,3212.0,3211.9,1.47905]
[1765432873770,1.8817,3212.0,3211.9,0.78325]
[1765432873965,1.8817,3212.0,3211.9,0.85735]
[1765432874370,1.8817,3212.0,3211.9,1.55315]
[1765432875377,1.1441,3212.0,3211.9,1.55315]
[1765432875577,1.8817,3212.0,3211.9,1.55315]
[1765432875882,1.1441,3212.0,3211.9,1.55315]
[1765432876270,0.4064,3212.0,3211.9,1.55315]
[1765432877079,1.3352,3212.0,3211.9,1.55315]
[1765432877675,2.208,3212.0,3211.9,1.55315]
[1765432877873,1.8016,3211.6,3211.5,0.69261436]
[1765432878170,1.8016,3211.6,3211.5,0.15878436]
[1765432878375,1.8016,3211.6,3211.5,0.84828436]
[1765432878977,1.8016,3211.7,3211.6,0.15567]
[1765432882282,1.8016,3211.6,3211.5,1.2332239]
[1765432883586,1.8016,3211.6,3211.5,1.3888939]
[1765432884386,1.8016,3211.6,3211.5,0.15814632]
[1765432885283,1.8016,3211.3,3211.2,1.34484758]
[1765432885481,2.3191,3211.5,3211.4,0.37328]
[1765432886285,2.3191,3211.5,3211.4,0.26689531]
[1765432886785,2.3191,3211.5,3211.4,0.39119531]
[1765432886979,1.4463,3211.5,3211.4,0.39119531]
[1765432887389,2.3191,3211.5,3211.4,0.39119531]
[1765432889585,2.3191,3211.5,3211.4,0.26689531]
[1765432890087,2.3191,3211.5,3211.4,0.15809531]
[1765432890781,1.8855,3211.3,3211.2,1.20544758]
[1765432890977,1.8855,3211.3,3211.2,1.29134758]
[1765432891586,1.8855,3211.3,3211.2,0.1835]
[1765432891886,1.8855,3211.3,3211.2,1.3640756]
[1765432892090,1.8855,3211.3,3211.2,1.4402756]
[1765432892487,1.8855,3211.3,3211.2,1.2664756]
[1765432892691,1.8855,3211.3,3211.2,1.3603756]
[1765432893095,1.8855,3211.3,3211.2,1.4522756]
[1765432893993,1.8855,3211.3,3211.2,1.2664756]
[1765432894898,1.8855,3211.3,3211.2,1.3507756]
[1765432896092,1.8855,3211.3,3211.2,0.3507756]
[1765432896503,1.8855,3211.3,3211.2,0.5064656]
[1765432898507,2.403,3211.5,3211.4,0.35148]
[1765432899004,0.5427,3211.0,3209.0,0.1179]
[1765432899201,3.2078,3209.1,3209.0,2.16699]
[1765432899597,1.10784758,3210.2,3209.5,1.5195]
[1765432899799,3.2078,3209.6,3209.5,2.4713]
[1765432900007,3.2101502,3209.6,3209.5,2.47471246]
[1765432900403,0.00467143,3210.3,3210.0,2.62705]
[1765432900404,3.2078,3210.1,3210.0,2.62705]
[1765432900601,4.1337,3210.1,3210.0,2.62705]
[1765432900805,5.0933,3210.1,3210.0,2.62705]
[1765432901302,5.09692844,3210.1,3210.0,2.62705]
[1765432901497,6.20477602,3210.1,3210.0,0.15575]
[1765432901702,0.5427,3209.5,3208.6,3.2078]
[1765432901902,0.9259,3208.8,3208.7,2.04911]
[1765432902209,4.1337,3209.0,3208.9,2.0491]
[1765432902597,4.1337,3209.0,3208.9,2.05272131]
[1765432903007,3.2078,3209.0,3208.9,2.05272131]
[1765432903407,4.1337,3209.0,3208.9,2.05272131]
[1765432905806,3.2078,3209.0,3208.9,2.05272131]
[1765432908214,4.1337,3209.6,3209.5,2.04907]
[1765432908408,5.0933,3209.6,3209.5,0.15577]
[1765432908612,0.9596,3209.2,3209.1,1.8933]
[1765432908806,1.8855,3209.2,3209.1,2.04909]
[1765432910808,5.0933,3209.6,3209.5,2.04907]
[1765432911016,5.0933,3209.6,3209.5,1.09727]
[1765432911309,5.0933,3209.6,3209.0,0.578]
[1765432911512,2.4282,3209.5,3209.4,0.9415]
[1765432911907,2.4282,3209.5,3209.4,1.8933]
[1765432912609,2.4282,3209.5,3209.4,1.09727]
[1765432912813,2.4282,3209.5,3209.4,2.04907]
[1765432913512,2.4282,3209.5,3209.4,0.15577]
[1765432914613,2.4282,3209.0,3208.9,0.15942131]
[1765432914815,5.636,3209.0,3208.9,0.15942131]
[1765432915115,5.636,3209.0,3208.1,3.2078]
[1765432915508,5.636,3209.0,3208.9,0.9415]
[1765432915910,5.636,3209.0,3208.9,0.94511805]
[1765432916603,5.636,3209.0,3208.9,0.15941805]
[1765432920317,5.636,3209.0,3208.1,3.2078]
[1765432920519,5.636,3209.0,3208.9,0.1558]
[1765432920909,5.636,3209.0,3208.1,3.2078]
[1765432921113,5.636,3209.0,3208.9,0.1558]
[1765432921414,5.636,3209.0,3208.1,3.2078]
[1765432921618,5.636,3209.0,3208.1,3.4598701]
[1765432921819,5.636,3209.0,3208.9,0.1558]
[1765432922509,5.636,3209.0,3208.9,0.15957757]
[1765432923224,5.636,3209.0,3208.9,1.03427757]
[1765432923415,6.2596,3209.4,3208.9,0.00377757]
[1765432923620,1.5315,3209.0,3208.9,3.14327757]
[1765432924521,6.2596,3209.4,3209.3,1.63738]
[1765432925319,6.2596,3209.4,3209.3,0.15578]
[1765432926617,6.2596,3209.4,3209.3,1.63738]
[1765432926819,6.2596,3209.4,3209.3,3.13948]
[1765432928225,7.38080138,3209.4,3209.3,1.63738]
[1765432928625,7.38080138,3209.4,3209.3,0.15578]
[1765432929524,7.38080138,3209.4,3209.3,1.63738]
[1765432930129,7.38080138,3209.4,3209.3,3.13948]
[1765432930526,7.38080138,3209.4,3209.3,1.63738]
[1765432931124,7.38080138,3209.4,3209.3,0.15578]
[1765432931826,7.38080138,3209.4,3209.3,3.13948]
[1765432932028,7.38080138,3209.4,3209.3,1.63738]
[1765432932223,7.38080138,3209.4,3209.3,0.15578]
[1765432932826,7.38080138,3209.4,3209.3,1.63738]
[1765432933229,7.38080138,3209.4,3209.3,3.13948]
[1765432933628,3.2078,3209.4,3209.3,3.13948]
[1765432934133,4.7393,3209.8,3209.7,2.9837]
[1765432934328,6.2596,3209.8,3209.7,4.12245955]
[1765432934629,4.7393,3209.8,3209.7,4.12245955]
[1765432934830,3.2078,3209.8,3209.7,4.12245955]
[1765432935131,4.7393,3209.8,3209.7,4.12245955]
[1765432935633,4.7393,3209.8,3209.7,4.27821955]
[1765432935821,6.2596,3209.8,3209.7,4.27821955]
[1765432942032,6.2596,3209.8,3209.7,1.29451955]
[1765432942237,6.2596,3209.8,3209.7,0.15576]
[1765432943531,7.39835955,3209.8,3209.7,0.15576]
[1765432948741,4.19055955,3209.8,3209.7,0.15576]
[1765432949042,7.39835955,3209.8,3209.7,0.15576]
[1765432950545,6.2596,3209.8,3209.7,0.15576]
[1765432950748,7.39835955,3209.8,3209.7,0.15576]
[1765432953934,6.2596,3209.8,3209.7,0.15576]
[1765432958143,7.39835955,3209.8,3209.7,0.15576]
[1765432960741,6.2596,3209.8,3209.7,2.80066]
[1765432961751,6.2596,3209.8,3209.7,1.50216]
[1765432963748,3.2078,3209.8,3209.7,3.93941955]
[1765432964254,4.5186,3209.8,3209.7,3.93941955]
[1765432971363,1.3108,3209.8,3209.7,3.93941955]
[1765432972466,2.6646,3209.8,3209.7,2.80066]
[1765432973566,1.3108,3209.8,3209.7,2.80066]
[1765432976176,2.6646,3209.8,3209.7,2.80066]
[1765432976674,1.3108,3209.8,3209.7,2.80066]
[1765432978579,5.7166,3209.9,3209.8,2.53186]
[1765432980176,3.2078,3209.9,3209.8,2.53186]
[1765432980375,4.4719,3209.9,3209.8,2.53186]
[1765432980580,5.7166,3209.9,3209.8,1.35826]
[1765432981082,5.7166,3209.9,3209.8,0.15576]
[1765432981581,5.7166,3209.9,3209.8,1.35826]
[1765432981876,2.5088,3209.3,3209.2,3.2078]
[1765432982083,3.2275,3209.0,3208.9,2.37987757]
[1765432982280,5.7166,3209.4,3209.3,1.35828]
[1765432983080,5.7166,3209.4,3209.3,2.53188]
[1765432985584,5.7166,3209.4,3209.3,1.35828]
[1765432986579,5.7166,3209.4,3209.3,0.15578]
[1765432986878,6.82644665,3209.4,3209.3,0.15578]
[1765432988474,5.7166,3209.4,3209.3,0.15578]
[1765432990276,5.7166,3209.4,3208.9,0.00377757]
[1765432990476,6.4353,3209.0,3208.9,0.00377757]
[1765432991273,6.4353,3209.0,3208.9,0.15957757]
[1765432994882,6.4353,3209.0,3208.9,1.36207757]
[1765432995077,6.4353,3209.0,3208.9,2.53567757]
[1765432995281,6.4353,3209.0,3208.9,0.15957757]
[1765433000091,6.4353,3209.0,3208.9,1.37977757]
[1765433002389,6.4353,3209.0,3208.9,0.15957757]
[1765433009389,3.0129,3208.5,3208.4,3.36362]
[1765433009589,6.2207,3208.5,3208.4,0.15582]
[1765433009797,7.33054665,3208.5,3208.4,0.15582]
[1765433010395,7.33054665,3208.5,3208.4,0.15815181]
[1765433011100,1.1908,3207.6,3207.5,6.0073]
[1765433011695,1.1908,3207.6,3207.5,6.2567247]
[1765433012195,1.19329098,3207.6,3207.5,6.26001449]
[1765433012597,2.35029098,3207.6,3207.5,5.91538449]
[1765433012796,2.35029098,3207.6,3207.5,4.73478449]
[1765433012992,2.35029098,3207.6,3207.5,0.15915979]
[1765433016799,2.35029098,3207.6,3207.5,2.45815979]
[1765433017505,2.35029098,3207.6,3207.5,1.27755979]
[1765433018006,2.35029098,3207.6,3207.5,0.15915979]
[1765433022411,1.1908,3206.8,3206.7,6.61664665]
[1765433023006,1.1908,3206.8,3206.7,6.8594882]
[1765433023204,2.3478,3206.8,3206.7,6.8594882]
[1765433023405,1.1908,3206.8,3206.7,6.86220801]
[1765433023706,1.1908,3206.8,3206.7,7.01811801]
[1765433024307,2.8593,3207.0,3206.9,2.4549]
[1765433024508,2.3478,3207.0,3206.9,2.4549]
[1765433025206,1.19329098,3207.6,3207.5,3.13187]
[1765433025411,2.35029098,3207.6,3207.5,0.15587]
[1765433026706,2.3478,3206.8,3206.7,0.24556136]
[1765433026908,5.5556,3206.8,3206.7,1.36396136]
[1765433028611,5.5556,3206.8,3206.7,1.51987136]
[1765433029113,5.5556,3206.8,3206.7,2.70047136]
[1765433032721,5.5556,3206.8,3206.7,0.40147136]
[1765433033327,5.5556,3206.8,3206.7,2.70047136]
[1765433036830,3.2078,3206.8,3206.7,2.70047136]
[1765433037623,3.2078,3206.8,3206.7,3.81031801]
[1765433038026,4.3986,3206.8,3206.7,3.81031801]
[1765433038332,3.2078,3206.8,3206.7,3.81031801]
[1765433038835,5.3204,3207.3,3207.2,2.0369]
[1765433039037,5.3204,3207.3,3207.2,2.19278]
[1765433039834,5.3204,3207.3,3207.2,1.16808]
[1765433040632,5.3204,3207.3,3207.2,0.15588]
[1765433041438,5.3204,3207.3,3207.2,1.16808]
[1765433042133,5.3204,3207.3,3207.2,0.15588]
[1765433042728,5.3204,3207.3,3207.2,1.16808]
[1765433042936,5.3204,3207.3,3207.2,3.33299558]
[1765433043137,5.3204,3207.3,3207.2,2.30829558]
[1765433043438,5.3204,3207.3,3207.2,1.16808]
[1765433044437,5.3204,3207.3,3207.2,2.30829558]
[1765433046738,5.3204,3207.3,3207.2,1.29609558]
[1765433049936,5.3204,3207.3,3207.2,2.30829558]
[1765433051034,0.00249098,3207.6,3207.5,2.82807]
[1765433051230,0.00249098,3207.6,3207.5,3.96828558]
[1765433053129,1.9915,3208.4,3208.3,2.12543]
[1765433053330,1.9915,3208.4,3208.3,3.26564558]
[1765433053732,0.9583,3208.4,3208.3,3.26564558]
[1765433054037,5.1993,3208.9,3208.8,1.1436]
[1765433054238,5.20151791,3208.9,3208.8,0.1558]
[1765433054936,11.20151791,3208.9,3208.8,0.1558]
[1765433055129,1.9915,3208.3,3208.2,1.14021558]
[1765433055333,1.9915,3208.3,3208.2,2.28384558]
[1765433055534,1.9915,3208.3,3208.2,0.15583]
[1765433056540,1.9915,3208.3,3208.2,1.29604558]
[1765433056740,1.9915,3208.3,3208.2,2.28384558]
[1765433057336,1.9915,3208.3,3208.2,3.26564558]
[1765433057537,1.9915,3208.3,3208.2,2.28384558]
[1765433058543,1.9915,3208.3,3208.2,3.26564558]
[1765433059141,1.9915,3208.3,3208.2,2.28384558]
[1765433059742,1.9915,3208.3,3208.2,3.26564558]
[1765433061942,4.1661,3208.5,3208.4,2.12542]
[1765433062242,5.1993,3208.5,3208.4,3.26563558]
[1765433062841,5.8239,3208.5,3208.4,0.15582]
[1765433068141,5.8239,3208.5,3208.4,2.28383558]
[1765433068544,5.37121791,3208.9,3208.8,2.4341]
[1765433068843,5.37121791,3208.9,3208.8,3.57431558]
[1765433070346,5.37121791,3208.9,3208.8,1.2944]
[1765433070549,5.37121791,3208.9,3208.8,0.1558]
[1765433070747,5.37121791,3208.9,3208.8,1.2944]
[1765433071249,5.37121791,3208.9,3208.8,0.1558]
[1765433074752,6.51143349,3208.9,3208.8,0.1558]
[1765433075053,5.37121791,3208.9,3208.8,0.1558]
[1765433076248,5.37121791,3208.9,3208.8,1.2944]
[1765433076442,5.37121791,3208.9,3208.8,0.1558]
[1765433076748,2.1612,3208.5,3208.4,3.41851558]
[1765433078653,2.1612,3208.5,3208.4,3.57433558]